Cogmind - Beta 15 @@@ ROGUE MODE // 2025.09.22 @ 12:42:16 Player: Ivanna Dostya Result: Destroyed by C-40 Crusher with Compactor Performance ------------- Evolutions (4) 2000 Regions Visited (8) 1600 Robots Destroyed (36) 180 Value Destroyed (822) 822 Prototype IDs (1) 20 Alien Tech Used (0) 0 Bonus (893) 893 TOTAL SCORE: 5515 Bonus ------- Follower Combat Kills 550 Met Imprinter 300 Was Imprinted 300 Friendly Fire -257 Cogmind --------- Core Integrity 0/850 Matter 300/300 Energy 100/100 System Corruption 15% Temperature Cool (0) Movement Core (50) Location -6/Waste Parts ------- > --- POWER (2) -------- (None) > --- PROPULSION (4) --- (None) > --- UTILITY (7) ------ (None) > --- WEAPON (2) ------- (None) > --- INVENTORY (5) ---- Fission Core Antimatter Reactor Graphene Brace Peak State ------------ > --- POWER ------------ Light Angular Momentum Engine Light Fission Core > --- PROPULSION ------- Carbon-fiber Leg Carbon-fiber Leg VTOL Module > --- UTILITY ---------- Improved Heat Sink Large Storage Unit Experimental Sensor Array Improved Terrain Scanner Advanced Terrain Scan Processor Makeshift Ablative Armor Makeshift Ablative Armor > --- WEAPON ----------- Heavy Beamcaster Gauss Cannon > --- INVENTORY -------- Light Nuclear Core Light Nuclear Core Light Nuclear Core Fission Core Layered Medium Armor Plating Hacking Drone Bay Riot Gun Riot Gun Autogun Makeshift Shrapnel Gun Thermoblaster Thermoblaster Phasing Sabre CR-A16's Pointy Stick [Rating: 66] Favorites ----------- Power Makeshift Power Source Engine Makeshift Power Source Power Core Light Fission Core Propulsion Aluminum Leg Treads Light Treads Leg Aluminum Leg Wheel Wheel Hover Unit Hover Unit Flight Unit VTOL Module Utility Experimental Sensor Array Device Experimental Sensor Array Storage Large Storage Unit Processor Advanced Terrain Scan Processor Protection Hardened Light Armor Plating Weapon Slug Cannon Energy Gun Small Laser Ballistic Gun Makeshift Shrapnel Gun Ballistic Cannon Slug Cannon Launcher Rocket Launcher Piercing Weapon CR-A16's Pointy Stick Build | -11 -10 -10 -9 -9 -7 -6 -6 -6 ------- Run | Yrd Mat Min Mat Min Zio Pro Fac Was Slots Evolved 8 | . . . 2 . . . 6 . Power 1 | . . . . . . . 1 . Propulsion 2 | . . . . . . . 2 . Utility 5 | . . . 2 . . . 3 . Weapon . | . . . . . . . . . Parts Attached 57 | . 8 5 8 12 5 7 5 7 Power 11 | . 1 2 2 1 1 2 1 1 Engine 9 | . 1 2 2 1 1 2 . . Core 2 | . . . . . . . 1 1 Reactor . | . . . . . . . . . Propulsion 16 | . 5 . 3 4 . 3 1 . Treads 2 | . 2 . . . . . . . Leg 9 | . 3 . 1 2 . 3 . . Wheel 2 | . . . . 2 . . . . Hover 2 | . . . 2 . . . . . Flight 1 | . . . . . . . 1 . Utility 14 | . 1 1 2 4 2 1 3 . Device 4 | . 1 1 . 1 . . 1 . Storage 1 | . . . . 1 . . . . Processor 3 | . . . 1 1 1 . . . Hackware . | . . . . . . . . . Protection 6 | . . . 1 1 1 1 2 . Artifact . | . . . . . . . . . Weapon 16 | . 1 2 1 3 2 1 . 6 Energy Gun 5 | . . . 1 . 1 . . 3 Energy Cannon . | . . . . . . . . . Ballistic Gun 5 | . 1 1 . 1 1 . . 1 Ballistic Cannon 2 | . . 1 . . . 1 . . Launcher 3 | . . . . 2 . . . 1 Special Weapon . | . . . . . . . . . Impact Weapon . | . . . . . . . . . Slashing Weapon . | . . . . . . . . . Piercing Weapon 1 | . . . . . . . . 1 Special Melee Weapon . | . . . . . . . . . Unidentified Prototypes 1 | . . 1 . . . . . . Corrupted Parts 2 | . . . . . . 2 . . System Corruption 13 | . . . . . . 13 . . Parts Lost 18 | . 1 . 2 3 . 1 . 11 Power 6 | . 1 . 1 . . 1 . 3 Propulsion 5 | . . . 1 2 . . . 2 Utility 5 | . . . . 1 . . . 4 Weapon 2 | . . . . . . . . 2 Highest Loss Streak 11 | . 1 . 2 2 . 1 . 11 To Critical Strikes . | . . . . . . . . . Average Backups 12 | . 6 8 7 11 14 14 13 6 Power 2 | . . . . 2 2 1 2 2 Propulsion . | . 4 1 . . . . . . Utility 3 | . . 3 2 3 4 4 2 . Weapon 6 | . 1 2 3 5 7 8 8 3 Tool/Special . | . . . . . . . . . Unused Backups 28 | . 8 2 1 1 3 5 . 8 Power 6 | . 1 . . . 1 . . 4 Propulsion 4 | . 4 . . . . . . . Utility 6 | . 1 . 1 . . 2 . 2 Weapon 12 | . 2 2 . 1 2 3 . 2 Tool/Special . | . . . . . . . . . Average Slot Usage (%) 97 | . 91 100 98 97 99 99 88 38 Engine 10 | . 13 14 10 11 11 11 6 1 Leg 20 | . 20 28 20 16 22 22 13 7 Wheel 1 | . . . . 5 . . . . Device 16 | . 6 14 11 14 21 15 19 7 Storage 10 | . 14 14 11 11 11 11 6 2 Processor 7 | . . . 10 7 6 11 6 3 Protection 6 | . . . 10 9 4 6 12 3 Energy Gun 3 | . 26 2 4 3 1 . . 2 Ballistic Gun 7 | . 1 20 6 7 9 1 . . Ballistic Cannon 11 | . . 4 11 9 11 20 13 2 Peak Build Rating 66 | . 9 20 23 23 37 43 64 66 Average Rating 29 | . 6 15 22 21 33 39 62 23 On Entrance 25 | 6 6 9 20 23 22 37 43 64 Naked Turns 69 | . . . . . . . . 69 Heaviest Build 69 | 11 15 19 26 47 46 56 69 69 Greatest Support 30 | 20 20 20 20 23 23 30 30 30 Greatest Overweight (x) 4 | . 1 . 3 4 1 2 2 2 Average Overweight (x) . | . . . 1 1 1 1 2 . Largest Inventory Capacity 15 | . 8 8 8 15 15 15 15 15 Average Capacity 12 | . 8 8 8 12 15 15 15 8 Most Carried 15 | . 8 8 8 14 15 15 15 15 Average Carried 12 | . 6 7 7 11 14 14 13 6 Final Capacity 15 | 8 8 8 8 15 15 15 15 5 Final Carried 15 | 6 8 8 8 14 15 15 15 3 Class Distribution -------------------- 26% | Derelict-Skirmisher 22% | Scavenger-Mutant 21% | Mutant 20% | Derelict-Mutant 9% | Scavenger-Skirmisher Dominant Class ---------------- Mutant | -10/Materials Mutant | -10/Mines Mutant | -9/Materials Scavenger-Mutant | -9/Mines Derelict-Skirmisher | -7/Zion Scavenger-Skirmisher | -6/Proximity Caves Scavenger-Skirmisher | -6/Factory Mutant | -6/Waste Resources | -11 -10 -10 -9 -9 -7 -6 -6 -6 ----------- Run | Yrd Mat Min Mat Min Zio Pro Fac Was Matter Collected 1855 | 200 44 96 279 444 70 332 108 282 Remotely . | . . . . . . . . . Salvage Created 1296 | . 304 110 188 171 . 58 210 255 Parts 68 | . 13 9 21 14 . 3 6 2 Haulers Intercepted 1 | . . . 1 . . . . . Recyclers Shooed 5 | . 1 . 3 1 . . . . Parts Field Recycled . | . . . . . . . . . Retrieved Matter . | . . . . . . . . . Parts Self-Destructed 15 | . . . . . . 15 . . Prevented 11 | . . . . . . 11 . . Kills | -11 -10 -10 -9 -9 -7 -6 -6 -6 ------- Run | Yrd Mat Min Mat Min Zio Pro Fac Was Combat Hostiles Destroyed 25 | . 8 3 4 7 . . 2 1 Melee 1 | . 1 . . . . . . . Guns 17 | . 7 3 1 5 . . . 1 Cannons 6 | . . . 2 2 . . 2 . AOE 1 | . . . 1 . . . . . Classes Destroyed 14 | . 3 . 5 2 . 1 2 1 Worker 1 | . . . . . . . 1 . Builder 1 | . . . 1 . . . . . Tunneler 2 | . . . . 2 . . . . Hauler 1 | . . . 1 . . . . . Recycler 3 | . 1 1 . . . . 1 . Watcher 2 | . . . 1 . . . 1 . Swarmer 10 | . 3 3 . 3 . . 1 . Grunt 10 | . 5 . 2 3 . . . . Brawler 1 | . . . . 1 . . . . Duelist 1 | . . . 1 . . . . . Sentry 1 | . . . 1 . . . . . Hunter 1 | . . . . . . . 1 . Compactor 1 | . . . . . . . . 1 Mutant 1 | . . . . . . 1 . . Best Kill Streak 5 | . 5 4 3 4 . . 3 1 Combat Bots Only 4 | . 4 3 2 4 . . 1 1 Max Kills in Single Turn 1 | . 1 1 1 1 . 1 1 1 Gunslinging . | . . . . . . . . . Exploded 1 | . . . 1 . . . . . Melee 1 | . 1 . . . . . . . Uniques/NPCs Destroyed . | . . . . . . . . . Combat | -11 -10 -10 -9 -9 -7 -6 -6 -6 -------- Run | Yrd Mat Min Mat Min Zio Pro Fac Was Hostile Shots Fired 223 | . 63 26 25 47 . 27 11 24 Missed 57 | . 10 5 10 12 . 11 6 3 Hits 166 | . 53 21 15 35 . 16 5 21 Melee 24 | . . . 1 2 . . . 21 Projectile 142 | . 53 21 14 33 . 16 5 . AOE 7 | . . . . 7 . . . . Critical Strikes 13 | . 2 . 1 1 . . 1 8 Damage Taken 3292 | . 641 178 213 650 . 472 124 1014 Core 1206 | . 163 27 12 99 . 39 35 831 Absorbed by Shields . | . . . . . . . . . Regen/Repaired (Parts) 274 | . . . . . 274 . . . Core Remaining (%) 62 | 100 . 24 . . . 62 . . Volleys Fired 145 | . 29 12 34 24 . 14 14 18 Largest 2 | . 2 2 2 2 . 2 2 2 Hottest 131 | . 90 63 80 80 . 80 80 131 Shots Fired 273 | . 56 23 62 48 . 29 28 27 Gun 147 | . 56 23 31 22 . . . 15 Cannon 124 | . . . 31 24 . 29 28 12 Launcher 2 | . . . . 2 . . . . Special . | . . . . . . . . . Kinetic 167 | . 2 14 50 30 . 29 28 14 Thermal 98 | . 54 9 12 16 . . . 7 Explosive 2 | . . . . 2 . . . . Electromagnetic 6 | . . . . . . . . 6 Robot Hit Streak 17 | . 9 7 7 6 . 5 3 17 Robot Miss Streak 7 | . 4 7 6 5 . 3 3 2 Penetration Max 1 | . . . . . . 1 . . Secondary Targets 2 | . . 2 . . . . . . Max Gunslinging Chain 1 | . . 1 . . . . . . Shots Hit Robots 160 | . 39 13 35 22 . 17 11 23 Core Hits 65 | . 16 6 16 12 . 5 6 4 Critical Kills 1 | . . . 1 . . . . . Critical Parts Destroyed 3 | . . . 2 . . . 1 . Critical Strikes 9 | . . . 3 1 . . 4 1 Destroy 5 | . . . 3 1 . . 1 . Blast 4 | . . . . . . . 3 1 Melee Attacks 1 | . . . . . . . . 1 Impact . | . . . . . . . . . Slashing . | . . . . . . . . . Piercing 1 | . . . . . . . . 1 Sneak Attacks . | . . . . . . . . . Combat Hostiles . | . . . . . . . . . Follow-up Attacks . | . . . . . . . . . Damage Inflicted 3342 | . 461 177 719 524 . 605 358 498 Guns 1219 | . 446 155 252 172 . . . 194 Cannons 1898 | . . . 381 298 . 605 352 262 Explosions 131 | . . . 85 46 . . . . Melee 16 | . . . . . . . . 16 Ramming 78 | . 15 22 1 8 . . 6 26 Kinetic 2295 | . . 131 558 359 . 605 352 290 Thermal 812 | . 446 24 75 111 . . . 156 Explosive 46 | . . . . 46 . . . . Electromagnetic 95 | . . . 85 . . . . 10 Impact . | . . . . . . . . . Slashing . | . . . . . . . . . Piercing 16 | . . . . . . . . 16 Highest Corruption 15 | . . . . 3 3 13 . 15 Average Corruption 5 | . . . . 3 3 12 . 9 Corruption Purged . | . . . . . . . . . Corruption Blocked . | . . . . . . . . . Effects 66 | . . . . 25 11 24 . 6 Message Errors 16 | . . . . 8 . 6 . 2 Matter Fused 11 | . . . . 5 3 2 . 1 Heat Flow Errors 4 | . . . . 1 2 1 . . Energy Discharges 14 | . . . . 7 2 5 . . Parts Rejected 1 | . . . . . . . . 1 Parts Fused 1 | . . . . 1 . . . . Data Loss (minor) 7 | . . . . . 2 5 . . Data Loss (major) 5 | . . . . 1 1 3 . . Misfires 3 | . . . . 2 . 1 . . Alerts 2 | . . . . . 1 1 . . Misdirections 2 | . . . . . . . . 2 Overload Shots . | . . . . . . . . . Overflow Damage 41 | . . . 13 3 . 25 . . Projectiles 41 | . . . 13 3 . 25 . . Explosions . | . . . . . . . . . Melee . | . . . . . . . . . Knockbacks 13 | . . . 1 2 . 8 2 . Impact 1 | . . . . 1 . . . . Kinetic 11 | . . . 1 1 . 7 2 . Secondary 1 | . . . . . . 1 . . Self-Inflicted Damage 110 | . . . 11 88 . . . 11 Shots 3 | . . . 1 2 . . . . Rammed 17 | . 5 . . . . . . 12 Targets Rammed 27 | . 6 5 1 2 . . 1 12 Kicked 9 | . . 5 1 2 . . 1 . Crushed 1 | . 1 . . . . . . . Highest Temperature 405 | . 405 . 103 134 269 280 . 36 Average Temperature 103 | . 223 . 28 48 130 95 . 16 Received Heat Transfer 663 | . 348 . 99 72 . 144 . . Effects 6 | . 6 . . . . . . . Shutdowns 3 | . 3 . . . . . . . Energy Bleed 2 | . 2 . . . . . . . Short Circuit 1 | . 1 . . . . . . . Siege Activations . | . . . . . . . . . Martial Activations . | . . . . . . . . . Shielding Activations . | . . . . . . . . . Robots Disrupted . | . . . . . . . . . Combat Hostiles . | . . . . . . . . . Robots Corrupted . | . . . . . . . . . Combat Hostiles . | . . . . . . . . . Parts Fried . | . . . . . . . . . Impact Corruptions . | . . . . . . . . . Robots Melted . | . . . . . . . . . Combat Hostiles . | . . . . . . . . . Parts Melted 1 | . 1 . . . . . . . Heat Transferred 1900 | . 1166 50 175 250 . . . 259 Parts Sabotaged . | . . . . . . . . . Parts Stolen . | . . . . . . . . . Parts Stripped . | . . . . . . . . . Power Chain Reactions . | . . . . . . . . . Alert | -11 -10 -10 -9 -9 -7 -6 -6 -6 ------- Run | Yrd Mat Min Mat Min Zio Pro Fac Was Maximum Alert Level . | . . . . . . . . . Low Security (%) 100 | . 100 100 100 100 . . 100 100 Level 1 . | . . . . . . . . . Level 2 . | . . . . . . . . . Level 3 . | . . . . . . . . . Level 4 . | . . . . . . . . . Level 5 . | . . . . . . . . . High Security . | . . . . . . . . . Max Security . | . . . . . . . . . Peak Influence 155 | . 155 65 66 88 . . 125 30 Initial 35 | . . 35 . . . . . 30 Average 22 | . 91 15 12 10 . . 88 4 Influence Increases 1424 | . 232 75 168 216 . 545 188 . Destroy 0b10 Robot/C 820 | . 160 60 80 140 . 280 100 . Destroy 0b10 Robot/NC 50 | . 5 5 15 10 . . 15 . Destroy Leader 166 | . 30 10 24 30 . 50 22 . Allied During Kill 239 | . . . . . . 215 24 . Successful Hack 30 | . 7 . 23 . . . . . Select Force Hacks 30 | . 30 . . . . . . . Disable Machine 30 | . . . 15 . . . 15 . Destroy Structure 44 | . . . 11 21 . . 12 . Lose Combat Pursuer 15 | . . . . 15 . . . . Influence Decreases 1424 | . 140 167 167 217 . 545 100 88 Entered New Map 116 | . . 57 . 1 . . . 58 Time Decay 1022 | . 130 110 151 186 . 355 80 10 Lost Part 61 | . 10 . 11 30 . 10 . . Lost Ally 220 | . . . . . . 180 20 20 Purge Threat 5 | . . . 5 . . . . . Squads Dispatched 3 | . 1 . 2 . . . . . Investigation 1 | . 1 . . . . . . . Extermination . | . . . . . . . . . Reinforcement 2 | . . . 2 . . . . . Assault . | . . . . . . . . . Garrison . | . . . . . . . . . Intercept . | . . . . . . . . . Searches Triggered . | . . . . . . . . . Construction Impeded . | . . . . . . . . . Haulers Reinforced . | . . . . . . . . . Active Scanning Responses . | . . . . . . . . . Cargo Convoy Interrupts . | . . . . . . . . . Stealth | -11 -10 -10 -9 -9 -7 -6 -6 -6 --------- Run | Yrd Mat Min Mat Min Zio Pro Fac Was Distress Signals 3 | . . . 2 . . . 1 . Communications Jammed . | . . . . . . . . . Distress Signals . | . . . . . . . . . Times Spotted 52 | . 11 3 8 9 . 10 6 5 Peak Tracking Total 7 | . 7 3 3 5 . 3 5 4 Tactical Retreats 1 | . . . . 1 . . . . Traps | -11 -10 -10 -9 -9 -7 -6 -6 -6 ------- Run | Yrd Mat Min Mat Min Zio Pro Fac Was Traps Triggered 2 | . 1 . . . . . 1 . Indirectly . | . . . . . . . . . Trap Hack Attempts . | . . . . . . . . . Triggered . | . . . . . . . . . Disarmed . | . . . . . . . . . Reprogrammed . | . . . . . . . . . Reused . | . . . . . . . . . Traps Extracted . | . . . . . . . . . Installed . | . . . . . . . . . Triggered . | . . . . . . . . . Machines | -11 -10 -10 -9 -9 -7 -6 -6 -6 ---------- Run | Yrd Mat Min Mat Min Zio Pro Fac Was Machines Disabled 2 | . . . 1 . . . 1 . Max in Single Turn 1 | . . . 1 . . . 1 . Machines Repaired . | . . . . . . . . . Machines Dismantled . | . . . . . . . . . Machines Sabotaged . | . . . . . . . . . Overloaded Fab Kills . | . . . . . . . . . Hacking | -11 -10 -10 -9 -9 -7 -6 -6 -6 --------- Run | Yrd Mat Min Mat Min Zio Pro Fac Was Machines Accessed 8 | . 3 . 5 . . . . . Terminals 6 | . 1 . 5 . . . . . Fabricators . | . . . . . . . . . Repair Stations . | . . . . . . . . . Recycling Units 2 | . 2 . . . . . . . Scanalyzers . | . . . . . . . . . Garrison Access . | . . . . . . . . . Total Hacks 27 | . 10 . 17 . . . . . Successful 16 | . 6 . 10 . . . . . Failed 11 | . 4 . 7 . . . . . Catastrophic 1 | . . . 1 . . . . . Database Lockouts . | . . . . . . . . . Manual 19 | . 4 . 15 . . . . . Terminals 21 | . 4 . 17 . . . . . Fabricators . | . . . . . . . . . Repair Stations . | . . . . . . . . . Recycling Units 6 | . 6 . . . . . . . Scanalyzers . | . . . . . . . . . Garrison Access . | . . . . . . . . . Terminal Hacks 8 | . 2 . 6 . . . . . Record 1 | . 1 . . . . . . . Part Schematic 1 | . 1 . . . . . . . Branch Access Points 1 | . . . 1 . . . . . Emergency Access Points 1 | . . . 1 . . . . . Terminal Index 1 | . . . 1 . . . . . Alert Level 1 | . . . 1 . . . . . Unreport Threat 1 | . . . 1 . . . . . Hauler Manifests 1 | . . . 1 . . . . . Fabricator Hacks . | . . . . . . . . . Repair Station Hacks . | . . . . . . . . . Recycling Unit Hacks 3 | . 3 . . . . . . . Retrieve Components 3 | . 3 . . . . . . . Scanalyzer . | . . . . . . . . . Garrison Access Hacks . | . . . . . . . . . Unauthorized Hacks 5 | . 1 . 4 . . . . . Terminals 4 | . . . 4 . . . . . Track 1 | . . . 1 . . . . . Botnet 2 | . . . 2 . . . . . Operators 1 | . . . 1 . . . . . Fabricators . | . . . . . . . . . Repair Stations . | . . . . . . . . . Recycling Units 1 | . 1 . . . . . . . Tunnel 1 | . 1 . . . . . . . Scanalyzers . | . . . . . . . . . Garrison Access . | . . . . . . . . . Data Cores Recovered . | . . . . . . . . . Used . | . . . . . . . . . Hacking Detections 7 | . 2 . 5 . . . . . Full Trace Events . | . . . . . . . . . Feedback Events . | . . . . . . . . . Feedback Blocked . | . . . . . . . . . Robot Schematics Acquired 2 | . . . . . 2 . . . Robots Built . | . . . . . . . . . Authchips . | . . . . . . . . . Time . | . . . . . . . . . Total Robot Build Rating . | . . . . . . . . . Part Schematics Acquired 16 | . 1 . . . 15 . . . Parts Built . | . . . . . . . . . Authchips . | . . . . . . . . . Time . | . . . . . . . . . Total Part Build Rating . | . . . . . . . . . Parts Repaired . | . . . . . . . . . Time . | . . . . . . . . . Parts Recycled . | . . . . . . . . . Recycled Matter . | . . . . . . . . . Retrieved Matter . | . . . . . . . . . Retrieved Components 6 | . 6 . . . . . . . Parts Scanalyzed . | . . . . . . . . . Part Schematics Acquired . | . . . . . . . . . Parts Damaged . | . . . . . . . . . Bothacking | -11 -10 -10 -9 -9 -7 -6 -6 -6 ------------ Run | Yrd Mat Min Mat Min Zio Pro Fac Was Used RIF Installer . | . . . . . . . . . Robots Hacked . | . . . . . . . . . Non-combat . | . . . . . . . . . Combat . | . . . . . . . . . Robot Hacks Applied . | . . . . . . . . . Relay Couplers Released . | . . . . . . . . . Fabnet Peak Effective % . | . . . . . . . . . Robots Rewired . | . . . . . . . . . Allies Hacked . | . . . . . . . . . Hacks Repelled . | . . . . . . . . . Allies | -11 -10 -10 -9 -9 -7 -6 -6 -6 -------- Run | Yrd Mat Min Mat Min Zio Pro Fac Was Total Allies 16 | . . . . 3 11 . . 2 Largest Group 14 | . . . . 3 14 14 2 2 Highest-Rated Group 393 | . . . . 40 393 393 77 70 Highest-Rated Ally 51 | . . . . 16 51 51 40 39 Total Orders . | . . . . . . . . . Ally Attacks 126 | . . . . . . 83 26 17 Total Damage 2747 | . . . . . . 2147 386 214 Kills 18 | . . . . . . 15 3 . Allies Corrupted . | . . . . . . . . . Allies Melted 1 | . . . . . . 1 . . Intel | -11 -10 -10 -9 -9 -7 -6 -6 -6 ------- Run | Yrd Mat Min Mat Min Zio Pro Fac Was Active Infowar (turns) 6492 | . . 311 712 1457 2743 1001 178 90 Sensors 5418 | . . 311 712 483 2645 999 178 90 Terrain 4793 | . . . . 974 2743 849 178 49 Robot Analysis Total . | . . . . . . . . . Derelict Logs Recovered 8 | . . 2 . 1 2 3 . . Drone Launches . | . . . . . . . . . Drone Recoveries . | . . . . . . . . . Exploration | -11 -10 -10 -9 -9 -7 -6 -6 -6 ------------- Run | Yrd Mat Min Mat Min Zio Pro Fac Was Turns Passed 7347 | . 304 464 712 1483 2743 1290 178 173 Spaces Moved 3636 | 1 129 340 304 648 1416 624 46 128 Core 96 | . . . . . . . . 96 Treads 6 | . 6 . . . . . . . Legs 3448 | 1 123 340 294 572 1416 624 46 32 Wheels 76 | . . . . 76 . . . . Hover 10 | . . . 10 . . . . . Flight . | . . . . . . . . . Fastest Speed 50 | 120 120 120 116 120 190 190 260 50 Average Speed 182 | 120 134 120 191 212 190 191 260 74 Slowest Speed 330 | 120 190 120 260 330 190 260 260 260 Overloaded Moves . | . . . . . . . . . Propulsion Burnouts . | . . . . . . . . . Robots Hopped . | . . . . . . . . . Potential Cave-ins . | . . . . . . . . . Cave-ins Triggered . | . . . . . . . . . Exploration Rate (%) 48 | 2 30 86 35 84 89 82 2 27 Regions Visited 8 Branch Regions 4 Pre-discovered Areas 2 | . 1 . . . . 1 . . Known Exits Taken 1 | . . . 1 . . . . . Unknown Exits Taken 6 | 1 1 1 . 1 1 1 . . Scrap Searched 8 | . . 1 . 1 3 3 . . Spaces Dug 1 | . . . . . . 1 . . Terrain Destroyed 52 | . . . 10 27 . 4 11 . Melee . | . . . . . . . . . Projectile 34 | . . . 10 9 . 4 11 . AOE 18 | . . . . 18 . . . . Terrain Rammed . | . . . . . . . . . Walls Destroyed . | . . . . . . . . . Machines Disabled . | . . . . . . . . . Actions | -11 -10 -10 -9 -9 -7 -6 -6 -6 --------- Run | Yrd Mat Min Mat Min Zio Pro Fac Was Total 4069 | . 200 372 372 707 1473 692 76 177 Wait 77 | . 13 5 6 . 32 8 6 7 Move 3629 | . 128 339 303 647 1415 623 46 128 Hop . | . . . . . . . . . Pick Up 49 | . 8 1 7 8 8 11 4 2 Fast Attach 25 | . 3 3 5 6 3 3 1 1 Attach 23 | . 2 . 3 3 2 1 4 8 Detach 4 | . 1 . . 2 1 . . . Swap 29 | . 3 2 3 7 1 13 . . Drop 56 | . 7 5 10 8 11 15 . . Fire 145 | . 29 12 34 24 . 14 14 18 Melee 1 | . . . . . . . . 1 Ram 12 | . . . . . . . . 12 Kick 9 | . . 5 1 2 . . 1 . Crush 6 | . 6 . . . . . . . Escape Stasis . | . . . . . . . . . Rewire 4 | . . . . . . 4 . . Trap . | . . . . . . . . . Miscellaneous . | . . . . . . . . . Route ------- -11/Scrapyard -10/Materials -10/Mines -9/Materials (discovered 4 exits: [*Mat] / *Min / Sto x2) -9/Mines (discovered 3 exits: [*Mat x2] / *Zio) -7/Zion -6/Proximity Caves -6/Factory -6/Waste History --------- Turn | Location | Event 1 | -11/Scrapyard | Discovered new exit (range 0) 1 | -11/Scrapyard | Entered Materials 156 | -10/Materials | Core integrity fell below 50% 257 | -10/Materials | Discovered new exit (range 12) 300 | -10/Materials | Build established: Mutant 305 | -10/Materials | Entered Mines 453 | -10/Mines | Found a damaged Exp. Sensor Array with a note attached 457 | -10/Mines | Found Prototype Device 458 | -10/Mines | Identified Exp. Sensor Array 557 | -10/Mines | Learned Materials garrison access intel 604 | -10/Mines | A weapon hastily lodged in a ceiling crevice suddenly fell to the ground 681 | -10/Mines | Discovered new exit (range 9) 769 | -10/Mines | Entered Materials 769 | -9/Materials | Evolved 2 slots: Utility x2 770 | -9/Materials | Identified exit to Storage 972 | -9/Materials | Identified exit to Mines 1215 | -9/Materials | Discovered new exit (range 15) 1481 | -9/Materials | Entered Mines 1764 | -9/Mines | Assembled infested the area 1769 | -9/Mines | Assisted by a Guerilla fighting off Assembled 1806 | -9/Mines | Received a Rocket Launcher from a helpful Derelict 1943 | -9/Mines | Build established: Scavenger-Mutant 2059 | -9/Mines | Discovered new exit (range 14) 2087 | -9/Mines | Learned 2 Materials zone layouts 2092 | -9/Mines | Found DCF Scrap (14 items) 2685 | -9/Mines | Assisted by bots powering up and referring to "LRC-V3" 2877 | -9/Mines | Discovered new exit (range 8) 2887 | -9/Mines | A Derelict revealed a hidden shortcut to a safe place 2964 | -9/Mines | Entered Zion 2964 | -7/Zion | Accompanied by 3 allies 3313 | -7/Zion | Found CR-A16's Pointy Stick 3318 | -7/Zion | Discovered new exit (range 14) 3369 | -7/Zion | Build established: Derelict-Mutant 3526 | -7/Zion | System corruption cleaned by Quarantine Array 3646 | -7/Zion | Gained Derelict followers 3698 | -7/Zion | Gained Derelict followers 3829 | -7/Zion | Learned Factory emergency access door positions 3939 | -7/Zion | Learned Factory emergency access door positions 4450 | -7/Zion | Build established: Derelict-Skirmisher 4660 | -7/Zion | Visited the Megawrench Repair Shop 4660 | -7/Zion | Megawrench repaired 7 parts 4711 | -7/Zion | Given the Hacking Drone Bay 4712 | -7/Zion | Found Prototype Device 5021 | -7/Zion | Met Imprinter 5057 | -7/Zion | Imprinted 5059 | -7/Zion | Declared Zion's savior 5707 | -7/Zion | Entered Proximity Caves 5707 | -6/Proximity Caves | Accompanied by 14 allies 5850 | -6/Proximity Caves | Lost 3 allies 5917 | -6/Proximity Caves | Spotted B-75 Beast 5945 | -6/Proximity Caves | Allies destroyed B-75 Beast 5975 | -6/Proximity Caves | Lost 5 allies 6220 | -6/Proximity Caves | Learned Factory emergency access door positions 6258 | -6/Proximity Caves | Learned 8 Factory zone layouts 6267 | -6/Proximity Caves | System corruption reached 10% 6801 | -6/Proximity Caves | Build established: Scavenger-Skirmisher 6838 | -6/Proximity Caves | Encountered a Derelict sapper outpost 6980 | -6/Proximity Caves | Discovered new exit (range 6) 6997 | -6/Proximity Caves | Entered Factory 6997 | -6/Factory | Accompanied by 2 allies 6997 | -6/Factory | Evolved 6 slots: Power x1, Propulsion x2, Utility x3 6998 | -6/Factory | Identified exit to Lower Caves 7175 | -6/Factory | Sucked down chute 7175 | -6/Factory | Entered Waste 7175 | -6/Waste | Met up with 1 ally sucked down the chute earlier 7176 | -6/Waste | Met a frightened Derelict 7183 | -6/Waste | Spotted C-40 Crusher 7187 | -6/Waste | Spotted C-40 Crusher 7190 | -6/Waste | EMP discharged 7206 | -6/Waste | Destroyed C-40 Crusher 7215 | -6/Waste | Crushed by Compactor (1 part destroyed, 2 dropped) 7218 | -6/Waste | Crushed by Compactor (1 part destroyed, 1 dropped) 7221 | -6/Waste | Crushed by Compactor (1 part destroyed, 1 dropped) 7224 | -6/Waste | Crushed by Compactor (1 part destroyed, 1 dropped) 7235 | -6/Waste | Crushed by Compactor (1 part destroyed, 1 dropped) 7262 | -6/Waste | Crushed by Compactor (1 part destroyed, 2 dropped) 7265 | -6/Waste | Crushed by Compactor (1 part destroyed, 2 dropped) 7273 | -6/Waste | Crushed by Compactor (1 part destroyed, 1 dropped) 7275 | -6/Waste | Spotted C-40 Crusher 7275 | -6/Waste | Spotted C-40 Crusher 7275 | -6/Waste | Spotted C-40 Crusher 7290 | -6/Waste | EMP discharged 7290 | -6/Waste | System corruption reached 10% 7300 | -6/Waste | Crushed by Compactor (1 part destroyed) 7323 | -6/Waste | Core integrity fell below 50% 7331 | -6/Waste | Lost 11 parts (3p2n4u2w) 7345 | -6/Waste | Core integrity fell below 20% 7348 | -6/Waste | Destroyed by C-40 Crusher with Compactor Last Messages --------------- 07277_ Acquired 218 matter. 07277_ CR-A16's Pointy Stick crushed. 07278_ Acquired Antimatter Reactor. 07280_ ALERT: Foreign system detected. Charging EMP. 07290_ System corrupted (+9). 07300_ Autogun crushed. 07302_ D3&9P:GBGBK %HYS1V><7HC%U9SFKK9IRTX BW 07302_ Slammed into C-40 Crusher. 07310_ Acquired Corrupted Graphene Brace. 07317_ 4 07341_ 3 Matter crushed. 07341_ Slammed into C-40 Crusher. 07341_ Destabilizing: Core damaged (-34). 07342_ Slammed into C-40 Crusher. 07345_ 5 Matter crushed. 07345_ Slammed into C-40 Crusher. 07347_ 5 Matter crushed. 07347_ Slammed into C-40 Crusher. Map ----- +----------------------------------------------------+ | ?????????????????????????????????????????????????? | | ?????????????????????????????????????????????????? | | ?????????????????????????????????????????????????? | | ?????????????????????????????????????????????????? | | ?????????????????????????????????????????????????? | | ?????????????????????????????????????????????????? | | ?????????????????????????????????????????????????? | | ?????????????????????????????????????????????????? | | ?????????????????????????????????????????????????? | | ?????????????????????????????????????????????????? | | ?????????????????????????????????????????????????? | | ?????????????????????????????????????????????????? | | ?????????????????????????????????????????????????? | | ?????????????????????????????????????????????????? | | ?????????????????????????????????????????????????? | | ?????????????????????????????????????????????????? | | ?????????????????????????????????????????????????? | | ?????????????????????????????????????????????????? | | ?????????????????????????????????????????????????? | | ?????????????????????????????????????????????????? | | ?????????????????????????????????????????????????? | | ?????????????????????????????????????????????????? | | ?????????????????????????????????????????????????? | | ?????????????????????######??????????????????????? | | ?????????????????????# CC%#??????????????????????? | | ?????????????????????# CC@#??????????????????????? | | ?????????????????????#CCCC#??????????????????????? | | ?????????????????????#CCCC#??????????????????????? | | ???????????????????### CC#??????????????????????? | | ???????????????????# CC#??????????????????????? | | ???????????????????# #??????????????????????? | | ???????????????????# #??????????????????????? | | ?????????#??##???### #??????????????????????? | | ??????????#?##??###### #??????????????????????? | | ???????##?#####???#?## #??????????????????????? | | ?????#?###?##?####??## #??????????????????????? | | ???????##???##?###?### #??????????????????????? | | ??#??###????#??#?#?### #??????????????????????? | | ??###?##?#####??#### ##?????????????????????? | | ??#?#####?####?##??# ##?????????????????????? | | #?#?####??###?#??### ##?#???????????????????? | | #####?#?####?##?#?## #?##???????????????????? | | #?#?###?#?#####?###### ####???????????????????? | | ######?############?## ####???????????????????? | | #?#?##?# #??# ###?#??????????????????? | | #?##?### ##?# ####???????????????????? | | #####?## [ #### #######????????????????? | | ##?#?### !% ????????????? | | #?###### ???????????? | | #?###### ! ????????????? | +----------------------------------------------------+ Best States ------------- Heat Dissipation 51 Energy Generation 31 Energy Capacity 265 Matter Stores 300 Matter Capacity 300 Sight Range 16 Robot Scan Range 20 Terrain Scan Range 16 Terrain Scan Density 210 Armor Coverage 450 Evasion (%) 55 Targeting Accuracy 5 Recoil Reduction 2 Authchip Count 1 Item Schematics ----------------- Sensor Array | -10/Materials | Hacked Adv. System Restoration Module | -7/Zion | Archive Imp. Field Recycling Unit | -7/Zion | Archive Imp. Particle Charger | -7/Zion | Archive Gatling Laser | -7/Zion | Archive Drone Bay | -7/Zion | Archive Hvy. Ion Cannon | -7/Zion | Archive Imp. Medium Treads | -7/Zion | Archive Gauss Cannon | -7/Zion | Archive Power Sword | -7/Zion | Archive System Restoration Module | -7/Zion | Archive Field Propulsion Drive | -7/Zion | Archive Matter Compressor | -7/Zion | Archive Microactuators | -7/Zion | Archive Proton Missile Launcher | -7/Zion | Archive Adv. Heat Sink | -7/Zion | Archive Robot Schematics ------------------ S-27 Virus | -7/Zion | Archive A-02 Transporter | -7/Zion | Archive Fabricated ------------ Nothing Repaired ---------- Nothing Alien Tech Used ----------------- None Achievements -------------- None Challenges ------------ None Game ------ Seed BarrageFrostTurbovents Manual? 0 Play Time 00:55:26 Cumulative 28.8 hours Start 2025.09.21 @ 14:23:12 End 2025.09.22 @ 12:42:16 Sessions 3 Manual Loads 0 Difficulty Rogue Special Mode None Game No. 36 Rogue 34 Adventurer 2 Explorer 0 Win Type - Total 0 Types 0/0/0/0/0/0/0/0/0/0 Lore% 15 Gallery% 30 Achievement% 29 Wizard Run 0 Options --------- Layout 1 ASCII 0 Keyboard 0 Movement Numpad Keybinds 1 Fullscreen 2 Font 24/Smallcaps Map View 50x35 Zoom Use 0% Tactical HUD 1 Map Filters NONE Filters NONE Steam 1 RUN: c4928efe-f628-44a0-bef0-3832bc5a8473